[Event "Redbull chessmasters 2019"]
[Site "Istambul"]
[Date "2019.11.24"]
[Round "5.5"]
[White "Inan, Canberk"]
[Black "Kilic, Efe Mert"]
[Result "0-1"]
[ECO "E61"]
[WhiteElo "1941"]
[BlackElo "2247"]
[Annotator "NA"]
[PlyCount "80"]
[EventDate "2019.11.23"]
[EventType "k.o."]
[EventCountry "TUR"]
[SourceTitle "playchess.com"]
[Source "ChessBase"]
[SourceQuality "1"]
[TimeControl "600+5"]

1. d4 {[%emt 0:00:00]} d6 {[%emt 0:00:00]} 2. c4 {[%emt 0:00:05]} e5 {[%emt 0:00:05]} 3. Nc3 {[%emt 0:00:00]} Nd7 {[%emt 0:00:06]} 4. e3 {[%emt 0:00:38]} g6 {[%emt 0:00:10]} 5. Nf3 {[%emt 0:00:05]} Bg7 {[%emt 0:00:05]} 6. Be2 {[%emt 0:00:04]} Ngf6 {[%emt 0:00:23]} 7. O-O {[%emt 0:00:05]} O-O {[%emt 0:00:05]} 8. b3 {[%emt 0:00:07]} Re8 {[%emt 0:00:40]} 9. Bb2 {[%emt 0:00:38]} exd4 {[%emt 0:00:20]} 10. exd4 {[%emt 0:00:33]} d5 {[%emt 0:00:07]} 11. cxd5 {[%emt 0:00:46]} Nb6 {[%emt 0:00:04]} 12. Ne5 {[%emt 0:00:10]} Nbxd5 {[%emt 0:00:11]} 13. Nxd5 {[%emt 0:01:07]} Nxd5 {[%emt 0:00:05]} 14. Bf3 {[%emt 0:00:18]} c6 {[%emt 0:00:05]} 15. Re1 {[%emt 0:00:12]} Be6 {[%emt 0:00:24]} 16. Rc1 {[%emt 0:00:16]} Qg5 {[%emt 0:01:39]} 17. Rc5 {[%emt 0:01:56]} Bf8 {[%emt 0:00:11]} 18. Bc1 {[%emt 0:00:17]} Qf6 {[%emt 0:00:06]} 19. Rc2 {[%emt 0:00:18]} Nb4 {[%emt 0:00:15]} 20. Rce2 {[%emt 0:00:11]} Red8 {[%emt 0:00:34]} 21. a3 {[%emt 0:00:18]} Nd5 {[%emt 0:00:07]} 22. g3 {[%emt 0:01:10]} Nc3 {[%emt 0:00:11]} 23. Qd3 {[%emt 0:00:15]} Nxe2+ {[%emt 0:00:06]} 24. Qxe2 {[%emt 0:00:05]} Bd5 {[%emt 0:00:21]} 25. Bg4 {[%emt 0:00:35]} Bg7 {[%emt 0:02:07]} 26. h4 {[%emt 0:00:40]} h6 {[%emt 0:00:24]} 27. h5 {[%emt 0:00:41]} g5 {[%emt 0:00:03]} 28. Be3 {[%emt 0:00:24]} Re8 {[%emt 0:00:23]} 29. Qc2 {[%emt 0:00:17]} Re7 {[%emt 0:00:35]} 30. b4 {[%emt 0:00:11]} Rae8 {[%emt 0:00:13]} 31. Qc5 {[%emt 0:00:01]} b6 {[%emt 0:00:51]} 32. Qc3 {[%emt 0:00:03]} Qd6 {[%emt 0:00:17]} 33. Qd3 {[%emt 0:00:08]} Be6 {[%emt 0:00:09]} 34. Bxe6 {[%emt 0:00:09]} Rxe6 {[%emt 0:00:05]} 35. Qc4 {[%emt 0:00:04]} Qd5 {[%emt 0:00:02]} 36. Qc2 {[%emt 0:00:00]} Bxe5 {[%emt 0:00:18]} 37. dxe5 {[%emt 0:00:03]} Rxe5 {[%emt 0:00:05]} 38. Rd1 {[%emt 0:00:05]} Qf3 {[%emt 0:00:05]} 39. Qc4 {[%emt 0:00:05]} Qxd1+ {[%emt 0:00:05]} 40. Kg2 {[%emt 0:00:05]} Qd5+ {[%emt 0:00:01]} 0-1

[Event "Redbull chessmasters 2019"]
[Site "Istambul"]
[Date "2019.11.24"]
[Round "5.6"]
[White "Tarlabasi, Emirhan"]
[Black "Ozdemir, Serhan Berat"]
[Result "1-0"]
[ECO "E60"]
[WhiteElo "2316"]
[BlackElo "2096"]
[Annotator "NA"]
[PlyCount "71"]
[EventDate "2019.11.23"]
[EventType "k.o."]
[EventCountry "TUR"]
[SourceTitle "playchess.com"]
[Source "ChessBase"]
[SourceQuality "1"]
[TimeControl "600+5"]

1. d4 {[%emt 0:00:00]} Nf6 {[%emt 0:00:00]} 2. Nf3 {[%emt 0:00:12]} g6 {[%emt 0:00:01]} 3. e3 {[%emt 0:00:05]} Bg7 {[%emt 0:00:00]} 4. Be2 {[%emt 0:00:00]} O-O {[%emt 0:00:02]} 5. O-O {[%emt 0:00:04]} d6 {[%emt 0:00:03]} 6. c4 {[%emt 0:00:00]} c5 {[%emt 0:00:13]} 7. d5 {[%emt 0:00:00]} e6 {[%emt 0:00:31]} 8. Nc3 {[%emt 0:00:00]} exd5 {[%emt 0:00:02]} 9. cxd5 {[%emt 0:00:00]} Re8 {[%emt 0:00:10]} 10. Nd2 {[%emt 0:00:01]} b6 {[%emt 0:01:05]} 11. e4 {[%emt 0:00:08]} Ba6 {[%emt 0:00:19]} 12. a4 {[%emt 0:00:48]} Bxe2 {[%emt 0:00:34]} 13. Qxe2 {[%emt 0:00:02]} Qe7 {[%emt 0:01:14]} 14. Re1 {[%emt 0:02:34]} Nbd7 {[%emt 0:01:31]} 15. h3 {[%emt 0:00:15]} Nh5 {[%emt 0:01:12]} 16. Nf1 {[%emt 0:00:35]} Rac8 {[%emt 0:00:30]} 17. a5 {[%emt 0:00:11]} Qh4 {[%emt 0:02:33]} 18. Qg4 {[%emt 0:01:16]} Qxg4 {[%emt 0:00:18]} 19. hxg4 {[%emt 0:00:05]} Bxc3 {[%emt 0:00:05]} 20. bxc3 {[%emt 0:00:05]} Nhf6 {[%emt 0:00:05]} 21. axb6 {[%emt 0:00:05]} Nxb6 {[%emt 0:00:32]} 22. f3 {[%emt 0:00:43]} Nfxd5 {[%emt 0:00:19]} 23. Bd2 {[%emt 0:00:01]} Ne7 {[%emt 0:00:27]} 24. Rxa7 {[%emt 0:00:09]} Nc6 {[%emt 0:00:01]} 25. Ra6 {[%emt 0:00:10]} Nc4 {[%emt 0:00:03]} 26. Bf4 {[%emt 0:00:25]} N6e5 {[%emt 0:00:01]} 27. Rd1 {[%emt 0:00:07]} Ra8 {[%emt 0:00:15]} 28. Rda1 {[%emt 0:00:28]} Rxa6 {[%emt 0:00:05]} 29. Rxa6 {[%emt 0:00:00]} Rb8 {[%emt 0:00:03]} 30. Ne3 {[%emt 0:00:26]} Rb6 {[%emt 0:00:10]} 31. Ra8+ {[%emt 0:01:02]} Kg7 {[%emt 0:00:05]} 32. Nd5 {[%emt 0:00:09]} Rb1+ {[%emt 0:00:06]} 33. Kh2 {[%emt 0:00:05]} Rb2 {[%emt 0:00:00]} 34. Kh3 {[%emt 0:00:37]} h6 {[%emt 0:00:02]} 35. g5 {[%emt 0:00:20]} h5 {[%emt 0:00:11]} 36. Nf6 {[%emt 0:00:13]} 1-0

[Event "Redbull chessmasters 2019"]
[Site "Istambul"]
[Date "2019.11.24"]
[Round "5.7"]
[White "Ozsakallioglu, Okan"]
[Black "Gunduz, Umut Erdem"]
[Result "1-0"]
[ECO "B15"]
[WhiteElo "2072"]
[BlackElo "2172"]
[Annotator "NA"]
[PlyCount "59"]
[EventDate "2019.11.23"]
[EventType "k.o."]
[EventCountry "TUR"]
[SourceTitle "playchess.com"]
[Source "ChessBase"]
[SourceQuality "1"]
[TimeControl "600+5"]

1. e4 {[%emt 0:00:19]} c6 {[%emt 0:00:00]} 2. d4 {[%emt 0:00:00]} g6 {[%emt 0:00:09]} 3. Nc3 {[%emt 0:00:04]} Bg7 {[%emt 0:00:05]} 4. Nf3 {[%emt 0:00:00]} d5 {[%emt 0:00:26]} 5. h3 {[%emt 0:00:04]} Nh6 {[%emt 0:00:00]} 6. Bd3 {[%emt 0:00:03]} f6 {[%emt 0:00:12]} 7. O-O {[%emt 0:00:05]} O-O {[%emt 0:00:05]} 8. Ne2 {[%emt 0:00:03]} Nf7 {[%emt 0:00:07]} 9. exd5 {[%emt 0:00:05]} cxd5 {[%emt 0:00:05]} 10. c4 {[%emt 0:00:05]} dxc4 {[%emt 0:00:11]} 11. Bxc4 {[%emt 0:00:00]} Kh8 {[%emt 0:00:01]} 12. Nf4 {[%emt 0:00:40]} Nd6 {[%emt 0:00:32]} 13. Ne6 {[%emt 0:00:05]} Bxe6 {[%emt 0:00:00]} 14. Bxe6 {[%emt 0:00:06]} Nc6 {[%emt 0:00:05]} 15. d5 {[%emt 0:00:17]} Ne5 {[%emt 0:00:02]} 16. Nxe5 {[%emt 0:00:12]} fxe5 {[%emt 0:00:05]} 17. Bd2 {[%emt 0:00:05]} Qb6 {[%emt 0:00:08]} 18. Qb3 {[%emt 0:00:14]} Qa6 {[%emt 0:00:53]} 19. Rfe1 {[%emt 0:00:15]} Nf5 {[%emt 0:01:11]} 20. Bxf5 {[%emt 0:00:36]} Rxf5 {[%emt 0:00:07]} 21. Rac1 {[%emt 0:00:17]} Raf8 {[%emt 0:01:26]} 22. Be3 {[%emt 0:00:06]} e4 {[%emt 0:00:23]} 23. Rc7 {[%emt 0:00:15]} Qa5 {[%emt 0:00:05]} 24. Rec1 {[%emt 0:00:06]} b6 {[%emt 0:01:34]} 25. Rd1 {[%emt 0:00:26]} R5f7 {[%emt 0:00:16]} 26. d6 {[%emt 0:00:05]} Qe5 {[%emt 0:01:38]} 27. Qxf7 {[%emt 0:00:41]} Rxf7 {[%emt 0:00:40]} 28. Rc8+ {[%emt 0:00:01]} Rf8 {[%emt 0:00:55]} 29. Rxf8+ {[%emt 0:00:08]} Bxf8 {[%emt 0:00:05]} 30. d7 {[%emt 0:00:00]} 1-0

[Event "Redbull chessmasters 2019"]
[Site "Istambul"]
[Date "2019.11.24"]
[Round "5.8"]
[White "Kalayci, Nino"]
[Black "Duru, Ipek"]
[Result "0-1"]
[ECO "A01"]
[WhiteElo "1852"]
[BlackElo "1566"]
[Annotator "NA"]
[PlyCount "40"]
[EventDate "2019.11.23"]
[EventType "k.o."]
[EventCountry "TUR"]
[SourceTitle "playchess.com"]
[Source "ChessBase"]
[SourceQuality "1"]
[TimeControl "600+5"]

1. b3 {[%emt 0:00:00]} e5 {[%emt 0:00:00]} 2. e3 {[%emt 0:00:05]} Nc6 {[%emt 0:00:05]} 3. Bb2 {[%emt 0:00:05]} d6 {[%emt 0:00:00]} 4. d4 {[%emt 0:00:00]} Bf5 {[%emt 0:00:00]} 5. Bb5 {[%emt 0:00:42]} exd4 {[%emt 0:00:31]} 6. exd4 {[%emt 0:00:01]} d5 {[%emt 0:00:10]} 7. Nf3 {[%emt 0:01:03]} Bd6 {[%emt 0:00:57]} 8. O-O {[%emt 0:00:02]} Nge7 {[%emt 0:00:09]} 9. Ne5 {[%emt 0:00:22]} O-O {[%emt 0:00:18]} 10. Nd2 {[%emt 0:00:51]} Nb4 {[%emt 0:01:00]} 11. c3 {[%emt 0:00:52]} a6 {[%emt 0:00:45]} 12. Be2 {[%emt 0:00:37]} Bxe5 {[%emt 0:00:20]} 13. cxb4 {[%emt 0:00:56]} Bd6 {[%emt 0:00:14]} 14. a3 {[%emt 0:00:24]} Ng6 {[%emt 0:00:01]} 15. Bg4 {[%emt 0:02:06]} Qh4 {[%emt 0:00:20]} 16. Bh3 {[%emt 0:00:48]} Bxh3 {[%emt 0:00:05]} 17. gxh3 {[%emt 0:00:00]} Qxh3 {[%emt 0:00:14]} 18. f4 {[%emt 0:01:29]} Bxf4 {[%emt 0:00:26]} 19. Nf3 {[%emt 0:00:19]} Nh4 {[%emt 0:00:44]} 20. Rf2 {[%emt 0:00:26]} Be3 {[%emt 0:00:31]} 0-1

[Event "Redbull chessmasters 2019"]
[Site "Istambul"]
[Date "2019.11.24"]
[Round "5.9"]
[White "Ererdem, Gani Eren"]
[Black "Kilic, Ihsan"]
[Result "1-0"]
[ECO "E07"]
[WhiteElo "2105"]
[BlackElo "1941"]
[Annotator "NA"]
[PlyCount "51"]
[EventDate "2019.11.23"]
[EventType "k.o."]
[EventCountry "TUR"]
[SourceTitle "playchess.com"]
[Source "ChessBase"]
[SourceQuality "1"]
[TimeControl "600+5"]

1. d4 {[%emt 0:00:00]} d5 {[%emt 0:00:00]} 2. c4 {[%emt 0:00:01]} e6 {[%emt 0:00:00]} 3. Nf3 {[%emt 0:00:01]} Nf6 {[%emt 0:00:09]} 4. g3 {[%emt 0:00:01]} Be7 {[%emt 0:00:10]} 5. Bg2 {[%emt 0:00:05]} O-O {[%emt 0:00:05]} 6. O-O {[%emt 0:00:00]} Nbd7 {[%emt 0:00:14]} 7. Nc3 {[%emt 0:00:44]} a6 {[%emt 0:01:27]} 8. cxd5 {[%emt 0:01:20]} exd5 {[%emt 0:00:05]} 9. Qb3 {[%emt 0:00:00]} c6 {[%emt 0:00:22]} 10. a4 {[%emt 0:00:00]} Bd6 {[%emt 0:00:34]} 11. Nd2 {[%emt 0:03:57]} Re8 {[%emt 0:00:51]} 12. e4 {[%emt 0:00:04]} dxe4 {[%emt 0:00:08]} 13. Ndxe4 {[%emt 0:00:06]} Bc7 {[%emt 0:00:19]} 14. Ng5 {[%emt 0:01:12]} Re7 {[%emt 0:01:21]} 15. Bd2 {[%emt 0:00:27]} Nb6 {[%emt 0:00:32]} 16. Rad1 {[%emt 0:01:09]} h6 {[%emt 0:00:10]} 17. Nge4 {[%emt 0:00:14]} Nxe4 {[%emt 0:00:11]} 18. Bxe4 {[%emt 0:00:04]} Be6 {[%emt 0:00:14]} 19. Qc2 {[%emt 0:00:01]} Nd5 {[%emt 0:00:28]} 20. Rfe1 {[%emt 0:00:27]} Qd7 {[%emt 0:00:30]} 21. Qc1 {[%emt 0:00:25]} Nf6 {[%emt 0:00:30]} 22. Bxh6 {[%emt 0:00:09]} Nxe4 {[%emt 0:00:36]} 23. Nxe4 {[%emt 0:00:38]} f5 {[%emt 0:00:51]} 24. Nc5 {[%emt 0:00:17]} Qc8 {[%emt 0:01:11]} 25. Qg5 {[%emt 0:00:11]} Kf8 {[%emt 0:00:30]} 26. Nxe6+ {[%emt 0:00:25]} 1-0

[Event "Redbull chessmasters 2019"]
[Site "Istambul"]
[Date "2019.11.24"]
[Round "5.10"]
[White "Cil, Batuhan"]
[Black "Olcum, Ahmet"]
[Result "0-1"]
[ECO "C41"]
[WhiteElo "1737"]
[BlackElo "2303"]
[Annotator "NA"]
[PlyCount "57"]
[EventDate "2019.11.23"]
[EventType "k.o."]
[EventCountry "TUR"]
[SourceTitle "playchess.com"]
[Source "ChessBase"]
[SourceQuality "1"]
[TimeControl "600+5"]

1. e4 {[%emt 0:00:00]} d6 {[%emt 0:00:00]} 2. d4 {[%emt 0:00:00]} Nf6 {[%emt 0:00:04]} 3. Nc3 {[%emt 0:00:01]} e5 {[%emt 0:00:02]} 4. Nf3 {[%emt 0:00:10]} Nbd7 {[%emt 0:00:02]} 5. Bc4 {[%emt 0:00:12]} Be7 {[%emt 0:00:05]} 6. O-O {[%emt 0:00:05]} c6 {[%emt 0:00:01]} 7. a4 {[%emt 0:00:24]} h6 {[%emt 0:00:04]} 8. h3 {[%emt 0:00:07]} Qc7 {[%emt 0:00:04]} 9. Be3 {[%emt 0:00:16]} Nf8 {[%emt 0:00:06]} 10. d5 {[%emt 0:00:39]} g5 {[%emt 0:00:16]} 11. Nh2 {[%emt 0:01:02]} Ng6 {[%emt 0:00:09]} 12. b4 {[%emt 0:00:24]} Nf4 {[%emt 0:00:57]} 13. b5 {[%emt 0:00:28]} c5 {[%emt 0:00:09]} 14. a5 {[%emt 0:01:12]} Qd8 {[%emt 0:00:18]} 15. Re1 {[%emt 0:02:07]} Rg8 {[%emt 0:00:36]} 16. Kh1 {[%emt 0:01:36]} h5 {[%emt 0:00:35]} 17. Ra3 {[%emt 0:00:23]} Kf8 {[%emt 0:00:34]} 18. Be2 {[%emt 0:00:19]} g4 {[%emt 0:00:54]} 19. Bxf4 {[%emt 0:00:58]} exf4 {[%emt 0:00:08]} 20. hxg4 {[%emt 0:00:19]} Nxg4 {[%emt 0:00:11]} 21. Bxg4 {[%emt 0:00:30]} hxg4 {[%emt 0:00:09]} 22. e5 {[%emt 0:00:23]} dxe5 {[%emt 0:00:16]} 23. Ne4 {[%emt 0:00:10]} Bd6 {[%emt 0:00:44]} 24. c4 {[%emt 0:00:09]} Rh8 {[%emt 0:00:18]} 25. Kg1 {[%emt 0:00:02]} Qh4 {[%emt 0:01:14]} 26. Nxd6 {[%emt 0:00:05]} Qxh2+ {[%emt 0:00:05]} 27. Kf1 {[%emt 0:00:00]} f3 {[%emt 0:00:14]} 28. gxf3 {[%emt 0:00:15]} g3 {[%emt 0:00:00]} 29. fxg3 {[%emt 0:00:09]} 0-1

[Event "Redbull chessmasters 2019"]
[Site "Istambul"]
[Date "2019.11.24"]
[Round "5.11"]
[White "Isik, Esref"]
[Black "Tofan, Ismail"]
[Result "1/2-1/2"]
[ECO "B07"]
[WhiteElo "1920"]
[BlackElo "1685"]
[Annotator "NA"]
[PlyCount "132"]
[EventDate "2019.11.23"]
[EventType "k.o."]
[EventCountry "TUR"]
[SourceTitle "playchess.com"]
[Source "ChessBase"]
[SourceQuality "1"]
[TimeControl "600+5"]

1. e4 {[%emt 0:00:00]} d6 {[%emt 0:00:00]} 2. d4 {[%emt 0:00:05]} Nf6 {[%emt 0:00:00]} 3. Nc3 {[%emt 0:00:00]} Nbd7 {[%emt 0:00:00]} 4. Be3 {[%emt 0:00:09]} e5 {[%emt 0:00:00]} 5. d5 {[%emt 0:00:10]} c6 {[%emt 0:00:07]} 6. dxc6 {[%emt 0:00:05]} bxc6 {[%emt 0:00:00]} 7. h3 {[%emt 0:01:04]} Qa5 {[%emt 0:00:06]} 8. Qd2 {[%emt 0:00:34]} d5 {[%emt 0:00:17]} 9. exd5 {[%emt 0:00:14]} cxd5 {[%emt 0:00:03]} 10. Nb5 {[%emt 0:00:49]} Qxd2+ {[%emt 0:00:25]} 11. Bxd2 {[%emt 0:00:01]} Rb8 {[%emt 0:00:03]} 12. O-O-O {[%emt 0:00:48]} Ne4 {[%emt 0:00:18]} 13. Nc7+ {[%emt 0:00:44]} Kd8 {[%emt 0:00:36]} 14. Ba5 {[%emt 0:00:01]} Rb6 {[%emt 0:01:08]} 15. Nxd5 {[%emt 0:01:11]} Bc5 {[%emt 0:01:12]} 16. Bxb6+ {[%emt 0:01:19]} axb6 {[%emt 0:00:04]} 17. Bb5 {[%emt 0:00:19]} Nxf2 {[%emt 0:00:43]} 18. Nf3 {[%emt 0:00:05]} Nxh1 {[%emt 0:00:12]} 19. Rxh1 {[%emt 0:00:10]} Bb7 {[%emt 0:01:54]} 20. Rd1 {[%emt 0:00:18]} Kc8 {[%emt 0:00:55]} 21. Bxd7+ {[%emt 0:00:39]} Kxd7 {[%emt 0:00:02]} 22. Nxb6+ {[%emt 0:00:27]} Kc6 {[%emt 0:00:09]} 23. Nd7 {[%emt 0:00:17]} Be3+ {[%emt 0:00:26]} 24. Kb1 {[%emt 0:00:03]} e4 {[%emt 0:00:11]} 25. Nfe5+ {[%emt 0:00:24]} Kc7 {[%emt 0:00:05]} 26. Nxf7 {[%emt 0:00:07]} Ra8 {[%emt 0:00:41]} 27. Nde5 {[%emt 0:00:15]} Bf2 {[%emt 0:00:18]} 28. Rd7+ {[%emt 0:00:44]} Kb6 {[%emt 0:00:03]} 29. Nc4+ {[%emt 0:00:08]} Ka6 {[%emt 0:00:26]} 30. Re7 {[%emt 0:00:55]} Bd5 {[%emt 0:00:38]} 31. Nd2 {[%emt 0:00:16]} e3 {[%emt 0:00:12]} 32. Nf3 {[%emt 0:00:03]} Bxf3 {[%emt 0:01:03]} 33. gxf3 {[%emt 0:00:02]} Rf8 {[%emt 0:00:05]} 34. Kc1 {[%emt 0:00:12]} Rxf7 {[%emt 0:00:05]} 35. Rxf7 {[%emt 0:00:05]} e2 {[%emt 0:00:00]} 36. Re7 {[%emt 0:00:12]} e1=Q+ {[%emt 0:00:05]} 37. Rxe1 {[%emt 0:00:05]} Bxe1 {[%emt 0:00:05]} 38. Kd1 {[%emt 0:00:05]} Ba5 {[%emt 0:00:05]} 39. Ke2 {[%emt 0:00:05]} Kb5 {[%emt 0:00:05]} 40. Kd3 {[%emt 0:00:05]} g5 {[%emt 0:00:05]} 41. Ke4 {[%emt 0:00:05]} Bd2 {[%emt 0:00:05]} 42. Kd3 {[%emt 0:00:05]} Bf4 {[%emt 0:00:05]} 43. a3 {[%emt 0:00:05]} h5 {[%emt 0:00:05]} 44. b3 {[%emt 0:00:05]} Bc1 {[%emt 0:00:05]} 45. c4+ {[%emt 0:00:05]} Kb6 {[%emt 0:00:05]} 46. a4 {[%emt 0:00:02]} Ba3 {[%emt 0:00:00]} 47. Ke4 {[%emt 0:00:05]} Kc5 {[%emt 0:00:00]} 48. f4 {[%emt 0:00:05]} gxf4 {[%emt 0:00:20]} 49. Kxf4 {[%emt 0:00:05]} Bc1+ {[%emt 0:00:05]} 50. Kg3 {[%emt 0:00:05]} Bg5 {[%emt 0:00:06]} 51. a5 {[%emt 0:00:07]} Bd8 {[%emt 0:00:05]} 52. a6 {[%emt 0:00:05]} Kb6 {[%emt 0:00:05]} 53. b4 {[%emt 0:00:05]} Kxa6 {[%emt 0:00:05]} 54. Kf4 {[%emt 0:00:05]} Be7 {[%emt 0:00:05]} 55. b5+ {[%emt 0:00:05]} Kb6 {[%emt 0:00:05]} 56. Ke5 {[%emt 0:00:05]} Kc5 {[%emt 0:00:05]} 57. Ke6 {[%emt 0:00:05]} Bd8 {[%emt 0:00:05]} 58. Kd7 {[%emt 0:00:05]} Bg5 {[%emt 0:00:05]} 59. Ke6 {[%emt 0:00:05]} Kxc4 {[%emt 0:00:05]} 60. b6 {[%emt 0:00:05]} Kb5 {[%emt 0:00:05]} 61. Kf5 {[%emt 0:00:05]} Bd8 {[%emt 0:00:05]} 62. b7 {[%emt 0:00:05]} Bc7 {[%emt 0:00:05]} 63. Kg5 {[%emt 0:00:05]} Kb6 {[%emt 0:00:05]} 64. Kxh5 {[%emt 0:00:05]} Bb8 {[%emt 0:00:05]} 65. Kg6 {[%emt 0:00:05]} Kc6 {[%emt 0:00:05]} 66. h4 {[%emt 0:00:05]} Kd7 {[%emt 0:00:00]} 1/2-1/2

[Event "Redbull chessmasters 2019"]
[Site "Istambul"]
[Date "2019.11.24"]
[Round "5.12"]
[White "Ozdemir, Cemre"]
[Black "Gur, Tuba"]
[Result "0-1"]
[ECO "B43"]
[WhiteElo "1326"]
[BlackElo "1782"]
[Annotator "NA"]
[PlyCount "76"]
[EventDate "2019.11.23"]
[EventType "k.o."]
[EventCountry "TUR"]
[SourceTitle "playchess.com"]
[Source "ChessBase"]
[SourceQuality "1"]
[TimeControl "600+5"]

1. e4 {[%emt 0:00:00]} c5 {[%emt 0:00:00]} 2. Nf3 {[%emt 0:00:00]} e6 {[%emt 0:00:06]} 3. d4 {[%emt 0:00:04]} cxd4 {[%emt 0:00:05]} 4. Nxd4 {[%emt 0:00:05]} a6 {[%emt 0:00:00]} 5. Be2 {[%emt 0:00:00]} Qc7 {[%emt 0:00:00]} 6. O-O {[%emt 0:00:01]} Nf6 {[%emt 0:00:02]} 7. Nc3 {[%emt 0:00:05]} b5 {[%emt 0:00:01]} 8. a3 {[%emt 0:00:01]} Bb7 {[%emt 0:00:00]} 9. f3 {[%emt 0:00:42]} Bc5 {[%emt 0:00:03]} 10. Be3 {[%emt 0:00:11]} Qb6 {[%emt 0:00:05]} 11. Qd2 {[%emt 0:00:25]} e5 {[%emt 0:00:54]} 12. Nf5 {[%emt 0:00:05]} O-O {[%emt 0:01:03]} 13. Kh1 {[%emt 0:00:26]} Nc6 {[%emt 0:00:48]} 14. Bg5 {[%emt 0:00:23]} Nd4 {[%emt 0:00:09]} 15. Nxd4 {[%emt 0:00:57]} Bxd4 {[%emt 0:00:39]} 16. Bxf6 {[%emt 0:01:09]} Qxf6 {[%emt 0:00:03]} 17. Nd5 {[%emt 0:00:04]} Bxd5 {[%emt 0:00:13]} 18. exd5 {[%emt 0:00:05]} Bxb2 {[%emt 0:00:07]} 19. Ra2 {[%emt 0:00:07]} Bd4 {[%emt 0:00:02]} 20. c3 {[%emt 0:00:09]} Bc5 {[%emt 0:00:02]} 21. Rd1 {[%emt 0:00:22]} d6 {[%emt 0:00:13]} 22. a4 {[%emt 0:00:14]} bxa4 {[%emt 0:01:35]} 23. Rxa4 {[%emt 0:00:02]} a5 {[%emt 0:00:12]} 24. Rb1 {[%emt 0:00:43]} Rfb8 {[%emt 0:00:25]} 25. Qc2 {[%emt 0:00:39]} Qg6 {[%emt 0:00:25]} 26. Bd3 {[%emt 0:00:29]} Qh6 {[%emt 0:00:06]} 27. Rxa5 {[%emt 0:00:37]} Qe3 {[%emt 0:01:05]} 28. Rxa8 {[%emt 0:01:59]} Rxa8 {[%emt 0:00:02]} 29. Bxh7+ {[%emt 0:00:08]} Kh8 {[%emt 0:00:01]} 30. Be4 {[%emt 0:00:16]} g6 {[%emt 0:00:24]} 31. Qd3 {[%emt 0:00:58]} Qg5 {[%emt 0:00:27]} 32. Qb5 {[%emt 0:00:16]} Ra2 {[%emt 0:00:18]} 33. Qf1 {[%emt 0:00:49]} Rf2 {[%emt 0:00:05]} 34. Qg1 {[%emt 0:00:05]} Qh4 {[%emt 0:00:05]} 35. Rc1 {[%emt 0:00:05]} Be3 {[%emt 0:00:05]} 36. Rb1 {[%emt 0:00:05]} Bf4 {[%emt 0:00:05]} 37. Qf1 {[%emt 0:00:05]} Re2 {[%emt 0:00:05]} 38. Qg1 {[%emt 0:00:05]} Be3 {[%emt 0:00:05]} 0-1